Cogmind - Beta 9.6 @@@ ROGUE MODE // 2020.06.11 @ 19:25:49 Player: Teratos Result: Self-destructed Performance ------------- Evolutions (1) 500 Regions Visited (2) 400 Robots Destroyed (26) 130 Value Destroyed (438) 438 Prototype IDs (3) 60 Alien Tech Used (0) 0 Bonus (0) 0 TOTAL SCORE: 1528 Bonus ------- None Cogmind --------- Core Integrity 359/400 Matter 34/300 Energy 185/250 System Corruption 5% Temperature Cool (0) Movement Treading (160) Location -9/Materials Parts ------- > --- POWER (1) -------- Ion Engine > --- PROPULSION (2) --- Light Treads > --- UTILITY (4) ------ Structural Scanner Improved Terrain Scanner Seismic Analyzer Terrain Scan Processor > --- WEAPON (2) ------- Backup Laser I > --- INVENTORY (4) ---- Ion Engine Faulty Heavy Ion Engine Peak State ------------ > --- POWER ------------ Heavy Ion Engine > --- PROPULSION ------- Light Treads Light Treads > --- UTILITY ---------- Structural Scanner Improved Terrain Scanner Seismic Analyzer Terrain Scan Processor > --- WEAPON ----------- Grenade Launcher > --- INVENTORY -------- Ion Engine [Rating: 12] Favorites ----------- Power Ion Engine Engine Ion Engine Propulsion Light Treads Treads Light Treads Hover Unit Hover Unit Utility Seismic Analyzer Device Improved Terrain Scanner Storage Small Storage Unit Processor Seismic Analyzer Weapon Mining Laser Energy Gun Backup Laser I Ballistic Gun Light Assault Rifle Launcher Grenade Launcher Special Weapon Mining Laser Build | -11 -10 -9 ------- Run | Scr Mat Mat Slots Evolved 2 | . . 2 Power . | . . . Propulsion . | . . . Utility 2 | . . 2 Weapon . | . . . Parts Attached 25 | 14 7 4 Power 4 | 1 1 2 Engine 4 | 1 1 2 Core . | . . . Reactor . | . . . Propulsion 6 | 2 4 . Treads 4 | 2 2 . Leg . | . . . Wheel . | . . . Hover 2 | . 2 . Flight . | . . . Utility 5 | 3 . 2 Device 2 | 1 . 1 Storage 1 | 1 . . Processor 2 | 1 . 1 Hackware . | . . . Protection . | . . . Artifact . | . . . Weapon 10 | 8 2 . Energy Gun 1 | 1 . . Energy Cannon . | . . . Ballistic Gun 4 | 4 . . Ballistic Cannon . | . . . Launcher 1 | . 1 . Special Weapon 4 | 3 1 . Impact Weapon . | . . . Slashing Weapon . | . . . Piercing Weapon . | . . . Special Melee Weapon . | . . . Unidentified Prototypes 1 | . . 1 Parts Lost 6 | . 4 2 Power . | . . . Propulsion 3 | . 2 1 Utility . | . . . Weapon 3 | . 2 1 Highest Loss Streak 4 | . 4 2 Average Slot Usage (%) 92 | . 91 96 Engine 13 | . 14 11 Treads 20 | . 19 22 Hover 3 | . 4 . Device 16 | . 14 22 Processor 16 | . 14 22 Energy Gun 2 | . . 7 Launcher 5 | . 3 10 Special Weapon 14 | . 19 . Naked Turns . | . . . Heaviest Build 11 | 11 10 11 Greatest Support 40 | 40 40 40 Greatest Overweight (x) 2 | . 2 . Average Overweight (x) . | . . . Largest Inventory Capacity 6 | 6 4 4 Average Capacity 4 | 4 4 4 Most Carried 3 | 2 3 2 Average Carried 1 | 1 2 1 Final Capacity 4 | 4 4 4 Final Carried 3 | 2 3 2 Class Distribution -------------------- 77% | Scavenger-Mutant 15% | Scavenger-Skirmisher 6% | Mutant Dominant Class ---------------- Scavenger-Mutant | -10/Materials Scavenger-Skirmisher | -9/Materials Resources | -11 -10 -9 ----------- Run | Scr Mat Mat Matter Collected 441 | 270 170 1 Remotely . | . . . Salvage Created 407 | 127 151 129 Parts 38 | 9 16 13 Haulers Intercepted 1 | . 1 . Recyclers Shooed 1 | . . 1 Parts Field Recycled . | . . . Retrieved Matter . | . . . Parts Self-Destructed . | . . . Prevented . | . . . Kills | -11 -10 -9 ------- Run | Scr Mat Mat Combat Hostiles Destroyed 15 | . 7 8 Cannons 1 | . 1 . AOE 14 | . 6 8 Classes Destroyed 8 | 2 5 1 Worker 2 | . 2 . Builder 3 | . 3 . Tunneler 3 | 3 . . Hauler 1 | . 1 . Recycler 1 | 1 . . Watcher 1 | . . 1 Swarmer 6 | . 3 3 Grunt 9 | . 4 5 Best Kill Streak 7 | 3 7 6 Combat Bots Only 5 | . 5 5 Max Kills in Single Turn 2 | 1 2 2 Gunslinging . | . . . Exploded 2 | . 2 2 Melee . | . . . Uniques/NPCs Destroyed . | . . . Combat | -11 -10 -9 -------- Run | Scr Mat Mat Damage Taken 594 | . 420 174 Core 176 | . 135 41 Absorbed by Shields . | . . . Core Remaining (%) 73 | 100 46 . Volleys Fired 65 | 18 37 10 Largest 2 | 2 2 2 Hottest 200 | 200 200 60 Shots Fired 114 | 34 60 20 Gun 38 | 28 . 10 Cannon . | . . . Launcher 23 | . 13 10 Special 53 | 6 47 . Kinetic 28 | 28 . . Thermal 63 | 6 47 10 Explosive 23 | . 13 10 Electromagnetic . | . . . Robot Hit Streak 9 | 9 4 1 Robot Miss Streak 6 | 2 6 . Penetration Max . | . . . Secondary Targets . | . . . Shots Hit Robots 33 | 24 8 1 Core Hits 38 | 7 15 16 Critical Hits . | . . . Critical Kills . | . . . Critical Parts Destroyed . | . . . Melee Attacks . | . . . Impact . | . . . Slashing . | . . . Piercing . | . . . Sneak Attacks . | . . . Combat Hostiles . | . . . Follow-up Attacks . | . . . Damage Inflicted 1463 | 229 739 495 Guns 157 | 157 . . Cannons . | . . . Explosions 1108 | . 613 495 Melee . | . . . Ramming 6 | . 6 . Kinetic 157 | 157 . . Thermal 192 | 72 120 . Explosive 1108 | . 613 495 Electromagnetic . | . . . Impact . | . . . Slashing . | . . . Piercing . | . . . Highest Corruption 5 | . . 5 Average Corruption 5 | . . 5 Corruption Purged . | . . . Effects 5 | . . 5 Message Errors 1 | . . 1 Matter Fused 1 | . . 1 Heat Flow Errors 1 | . . 1 Energy Discharges 1 | . . 1 Targeting Errors 1 | . . 1 Overload Shots . | . . . Overflow Damage 44 | . 44 . Projectiles . | . . . Explosions 44 | . 44 . Melee . | . . . Knockbacks . | . . . Impact . | . . . Kinetic . | . . . Secondary . | . . . Self-Inflicted Damage 94 | . 94 . Shots 3 | . 3 . Rammed 1 | . 1 . Targets Rammed 1 | . 1 . Kicked . | . . . Crushed . | . . . Highest Temperature 375 | 56 375 173 Average Temperature 77 | 31 83 60 Received Heat Transfer 198 | . 120 78 Effects 2 | . 2 . Shutdowns 1 | . 1 . Damage (minor) 1 | . 1 . Siege Activations . | . . . Robots Corrupted . | . . . Combat Hostiles . | . . . Parts Fried . | . . . Impact Corruptions . | . . . Robots Melted . | . . . Combat Hostiles . | . . . Parts Melted . | . . . Heat Transferred 400 | 150 250 . Parts Sabotaged . | . . . Parts Stolen . | . . . Parts Stripped . | . . . Power Chain Reactions . | . . . Missiles Intercepted . | . . . Alert | -11 -10 -9 ------- Run | Scr Mat Mat Peak Influence 302 | 20 196 302 Average Influence 64 | 9 39 181 Maximum Alert Level 1 | . . 1 Low Security (%) 89 | 100 100 54 Level 1 10 | . . 45 Level 2 . | . . . Level 3 . | . . . Level 4 . | . . . Level 5 . | . . . High Security . | . . . Max Security . | . . . Squads Dispatched 3 | . 1 2 Investigation 1 | . . 1 Extermination . | . . . Reinforcement 2 | . 1 1 Assault . | . . . Garrison . | . . . Intercept . | . . . Construction Impeded . | . . . Haulers Reinforced . | . . . Stealth | -11 -10 -9 --------- Run | Scr Mat Mat Distress Signals 1 | . . 1 Communications Jammed . | . . . Distress Signals . | . . . Times Spotted 25 | . 9 16 Peak Tracking Total 7 | . 5 7 Tactical Retreats . | . . . Traps | -11 -10 -9 ------- Run | Scr Mat Mat Traps Triggered . | . . . Indirectly . | . . . Trap Hack Attempts . | . . . Triggered . | . . . Disarmed . | . . . Reprogrammed . | . . . Reused . | . . . Traps Extracted . | . . . Installed . | . . . Triggered . | . . . Machines | -11 -10 -9 ---------- Run | Scr Mat Mat Machines Disabled 1 | . 1 . Max in Single Turn 1 | . 1 . Machines Sabotaged . | . . . Garrisons Compromised . | . . . Overloaded Fab Kills . | . . . Fab Network Shutdowns . | . . . Hacking | -11 -10 -9 --------- Run | Scr Mat Mat Machines Accessed 6 | . 4 2 Terminals 5 | . 4 1 Fabricators . | . . . Repair Stations 1 | . . 1 Recycling Units . | . . . Scanalyzers . | . . . Garrison Access . | . . . Total Hacks 16 | . 9 7 Successful 8 | . 5 3 Failed 8 | . 4 4 Catastrophic 1 | . . 1 Database Lockouts . | . . . Manual . | . . . Terminals 11 | . 9 2 Fabricators . | . . . Repair Stations 5 | . . 5 Recycling Units . | . . . Scanalyzers . | . . . Garrison Access . | . . . Terminal Hacks 6 | . 5 1 Prototype ID Bank 1 | . 1 . Transport Status 1 | . 1 . Registered Prototypes 1 | . 1 . Zone Layout 3 | . 2 1 Fabricator Hacks . | . . . Repair Station Hacks 2 | . . 2 Scan Component 1 | . . 1 Refit 1 | . . 1 Recycling Unit Hacks . | . . . Scanalyzer . | . . . Garrison Access Hacks . | . . . Unauthorized Hacks . | . . . Terminals . | . . . Fabricators . | . . . Repair Stations . | . . . Recycling Units . | . . . Scanalyzers . | . . . Garrison Access . | . . . Data Cores Recovered . | . . . Used . | . . . Hacking Detections 5 | . 4 1 Full Trace Events 3 | . 2 1 Feedback Events . | . . . Feedback Blocked . | . . . Robot Schematics Acquired . | . . . Robots Built . | . . . Matter . | . . . Time . | . . . Total Robot Build Rating . | . . . Part Schematics Acquired . | . . . Parts Built . | . . . Matter . | . . . Time . | . . . Total Part Build Rating . | . . . Parts Repaired . | . . . Time . | . . . Parts Recycled . | . . . Recycled Matter . | . . . Retrieved Matter . | . . . Retrieved Components . | . . . Parts Scanalyzed . | . . . Part Schematics Acquired . | . . . Parts Damaged . | . . . Bothacking | -11 -10 -9 ------------ Run | Scr Mat Mat Used RIF Installer . | . . . Robots Hacked . | . . . Non-combat . | . . . Combat . | . . . Robot Hacks Applied . | . . . Relay Couplers Released . | . . . Robots Rewired . | . . . Allies Hacked . | . . . Hacks Repelled . | . . . Allies | -11 -10 -9 -------- Run | Scr Mat Mat Total Allies . | . . . Largest Group . | . . . Highest-Rated Group . | . . . Highest-Rated Ally . | . . . Total Orders . | . . . Ally Attacks . | . . . Total Damage . | . . . Kills . | . . . Allies Corrupted . | . . . Allies Melted . | . . . Intel | -11 -10 -9 ------- Run | Scr Mat Mat Robot Analysis Total . | . . . Derelict Logs Recovered . | . . . Drone Launches . | . . . Drone Recoveries . | . . . Exploration | -11 -10 -9 ------------- Run | Scr Mat Mat Turns Passed 1083 | 249 593 241 Spaces Moved 469 | 110 250 109 Core 43 | 7 36 . Treads 350 | 103 138 109 Legs . | . . . Wheels . | . . . Hover 76 | . 76 . Flight . | . . . Fastest Speed 50 | 50 56 160 Average Speed 140 | 153 126 160 Slowest Speed 160 | 160 160 160 Overloaded Moves . | . . . Propulsion Burnouts . | . . . Robots Hopped . | . . . Cave-ins Triggered . | . . . Exploration Rate (%) 18 | 7 34 13 Regions Visited 2 Branch Regions . Pre-discovered Areas . | . . . Known Exits Taken . | . . . Unknown Exits Taken 2 | 1 1 . Scrap Searched . | . . . Spaces Dug 32 | . 24 8 Terrain Destroyed 184 | . 126 58 Melee . | . . . Projectile 28 | . 28 . AOE 156 | . 98 58 Actions | -11 -10 -9 --------- Run | Scr Mat Mat Total 674 | 147 372 155 Wait 97 | . 68 29 Move 467 | 109 249 109 Hop . | . . . Pick Up 5 | . 4 1 Fast Attach 18 | 11 5 2 Attach 5 | 2 1 2 Detach 4 | 4 . . Swap 2 | 1 1 . Drop 10 | 2 6 2 Fire 65 | 18 37 10 Melee . | . . . Ram 1 | . 1 . Kick . | . . . Crush . | . . . Escape Stasis . | . . . Rewire . | . . . Trap . | . . . Miscellaneous . | . . . Route ------- -11/Scrapyard -10/Materials (discovered 2 exits: *Mat / [Min]) -9/Materials History --------- Turn | Location | Event 3 | -11/Scrapyard | Discovered new exit (range 15) 250 | -11/Scrapyard | Entered Materials 308 | -10/Materials | Build established: Scavenger-Mutant 565 | -10/Materials | Discovered new exit (range 16) 709 | -10/Materials | Lost 4 parts (2n2w) 790 | -10/Materials | Discovered new exit (range 11) 810 | -10/Materials | Core integrity fell below 50% 843 | -10/Materials | Entered another Materials area 843 | -9/Materials | Evolved 2 slots: Utility x2 1084 | -9/Materials | Self-destructed Last Messages --------------- 01007_ MWE>B=N/YUXDSAKBZ 01013_ U-05 Engineer builds a Wall. 01017_ U-05 Engineer lays Concrete. 01020_ S-10 Pest destroyed. 01026_ System corrupted: Heat flow error (+194). 01030_ U-05 Engineer lays Concrete. 01033_ U-05 Engineer builds a Wall. 01037_ U-05 Engineer lays Concrete. 01040_ U-05 Engineer builds a Door. 01041_ The unstable cave ceiling collapses. 01044_ U-05 Engineer lays Concrete. 01068_ K-01 Serf collects debris. 01069_ U-05 Engineer builds a Wall. 01071_ K-01 Serf collects debris. 01076_ Grenade Launcher destroyed. 01081_ System corrupted: Energy discharge (-82). 01081_ Lgt. Treads destroyed. 01082_ K-01 Serf destroyed. 01082_ K-01 Serf collects debris. Map ----- +----------------------------------------------------+ | ?????????????????????????????????????????????????? | | ?????????????????????????????????????????????????? | | ?????????????????????????????????????????????????? | | ?????????????????????????????????????????????????? | | ?????????????????????????????????????????????????? | | ?????????????????????????????????????????????????? | | ?????????????????????????????????????????????????? | | ?????????????????????????????????????????????????? | | ?????????????????????????????????????????????????? | | ?????????????????????????????????????????????????? | | ?????????????????????????? ???????? ???# ???#?#? | | ?????????????????????????? ? #?? ???? ?# ##?#?#? | | ???????????????????? #????? ??????? # #?#?#?# | | ?????????????????? ????????? #? ?? # ##?##?? | | ???????????????????? ????? ?#?? ? # # ? | | ???????????????????????#??????#??? ? # #?""""" | | ????????????????#??????##??#??#?#?+## #% # """"" | | ????????????????? ?????### ?????? # """"" | | ???????????#????????????#???? ? ? | | ??????????????????????? ???"???"???""" % # | | ???????????????#???????#?#???"?"?"?""" | | ???????????#???????????##????" ?"? """ # "Y"? | | ?????????????###########?#????? ? # ""? ? | | ?????????????# ##+######+##### ####### | | ???????????????"T" # %!g g g | | ?????????????# @ g g | | ???????????????"""" # g k | | ????????????????""" !!! ######################### | | ????????????????""" !! ?#??##??#####?#??##?##?### | | ??????????????? !! ??#??###?##?##??##?##??#?? | | ???????????#???########???????#?#####?##?????###?# | | ???????????????????##????##?#???#?#?##??#??###?### | | | | | | | | | | | | | | | | | | | | | | | | | | | | | | | | | | | | | +----------------------------------------------------+ Best States ------------- Heat Dissipation 28 Energy Generation 10 Energy Capacity 250 Matter Stores 300 Matter Capacity 300 Sight Range 16 Terrain Scan Range 16 Terrain Scan Density 135 Evasion (%) 53 Recoil Reduction 2 Item Schematics ----------------- None Robot Schematics ------------------ None Fabricated ------------ Nothing Alien Tech Used ----------------- None Achievements -------------- None Challenges ------------ None Game ------ Seed GaussUltimateShredder Manual? 0 Play Time 00:13:35 Cumulative 30.9 hours Start 2020.06.11 @ 18:36:22 End 2020.06.11 @ 19:25:49 Sessions 1 Manual Loads 0 Difficulty Rogue Special Mode None Game No. 66 Rogue 66 Adventurer 0 Explorer 0 Win Type - Total 0 Types 0/0/0/0/0/0/0 Lore% 21 Gallery% 23 Achievement% 21 Wizard Run 0 Options --------- ASCII 0 Keyboard 0 Movement Numpad Keybinds 0 Fullscreen 1 Font 18/SmallcapsGlow Map View 76x50 Tactical HUD 1 Map Filters NONE Filters NONE Steam 1 RUN: 4417356f-e862-4803-bc07-bfcb35ab1f16